fUST/lending_fUST_20251101
["ID","MTS","AMOUNT","RATE_DAILY","PERIOD"]
[392800499,1761963951018,10000.01,0.00019,3]
[392800500,1761963951039,3099.96,0.00019,3]
[392800512,1761964007715,395.95,0.00037988,30]
[392800513,1761964008503,204.0,0.0002589,2]
[392800518,1761964034696,-2205.77565508,0.00034948,2]
[392800519,1761964034726,-2205.77565508,0.0003508,2]
[392800521,1761964037528,-2205.77565508,0.00035558,2]
[392800522,1761964037556,-2205.77565511,0.00035679,2]
[392800523,1761964037582,-197.92844028,0.000359,2]
[392800524,1761964037609,-197.92844028,0.000359,2]
[392800529,1761964065468,154.67627865,0.0002876,120]
[392800533,1761964085000,3229.37837166,0.00037988,120]
[392800537,1761964108100,153.61174146,0.00037988,30]
[392800539,1761964111574,173.37906608,0.00028,120]
[392800542,1761964122034,1483.70322216,0.00037988,30]
[392800550,1761964205977,151.0,0.00037988,120]
[392800552,1761964206639,156.587,0.00037988,120]
[392800553,1761964207262,162.380719,0.00037988,120]
[392800554,1761964207860,168.3888056,0.00037988,120]
[392800555,1761964208487,174.61919141,0.00037988,120]
[392800556,1761964209099,601.31376919,0.00037988,120]
[392800567,1761964232312,-241.52364428,0.00034295,2]
[392800568,1761964232322,-200.0,0.00034295,2]
[392800569,1761964232331,-354.26005073,0.00035554,14]
[392800570,1761964232340,-400.0,0.00035952,2]
[392800571,1761964232350,-1600.0,0.00035952,3]
[392800572,1761964232359,-7773.97769769,0.00035953,2]
[392800573,1761964232475,-828.90536412,0.00035953,2]
[392800641,1761964238227,-2724.36889899,0.00035953,2]
[392800652,1761964238325,-10074.33805009,0.00036,7]
[392800730,1761964243512,-6861.22203625,0.00036,7]
[392800746,1761964246433,-1775.89313333,0.00036,7]
[392800747,1761964246487,-7346.31060276,0.00036,7]
[392800748,1761964246498,-3186.78922494,0.00036,7]
[392800759,1761964321738,150.0,0.0002589,2]
[392800760,1761964322226,177.0,0.0002789,2]
[392800761,1761964322621,250.52466227,0.0002989,2]
[392800762,1761964355076,300.0,0.00026,2]
[392800778,1761964513199,171.37802002,0.00037987,120]
[392800779,1761964518953,5000.0,0.00026,2]
[392800803,1761964669141,-1600.0,0.00034281,3]
[392800804,1761964669272,-400.0,0.00034281,2]
[392800805,1761964669299,-1600.0,0.00034281,3]
[392800806,1761964669327,-235.90869689,0.00034282,2]
[392800807,1761964669358,-424.6356544,0.00034282,2]
[392800808,1761964669384,-724.01346737,0.00034282,2]
[392800810,1761964675008,-1178.36394096,0.00034282,2]
[392800811,1761964675037,-203.0576355,0.00034536,2]
[392800812,1761964675065,-812.7328028,0.00034657,2]
[392800815,1761964679615,211.68605624,0.00034285,2]
[392800832,1761964795886,166.589999,0.00037988,30]
[392800853,1761964877885,245.013745,0.00013699,2]
[392800854,1761964878060,245.013745,0.00020187,2]
[392800855,1761964878664,-173.30257624,0.00026676,2]
[392800856,1761964879188,-71.71116876,0.00026676,2]
[392800875,1761964987798,-162.524783,0.00029084,20]
[392800888,1761965075853,-162.524783,0.00032315,20]
[392800889,1761965075875,-245.013745,0.00033165,2]
[392800908,1761965208175,-168.0,0.00035266,2]
[392800909,1761965208196,-168.0,0.00035782,2]
[392800910,1761965208216,-450.6368123,0.00035835,2]
[392800911,1761965208238,-1378.9511951,0.00035954,2]
[392800912,1761965208259,-168.0,0.00035965,120]
[392800913,1761965208278,-400.0,0.00035969,3]
[392800914,1761965208298,-500.0,0.0003597,15]
[392800915,1761965208317,-500.0,0.0003597,2]
[392800916,1761965208337,-500.0,0.0003597,15]
[392800917,1761965208355,-629.68870369,0.0003597,15]
[392800918,1761965208373,-500.0,0.0003597,15]
[392800919,1761965208392,-500.0,0.0003597,15]
[392800920,1761965208413,-500.0,0.0003597,15]
[392800921,1761965208433,-500.0,0.0003597,15]
[392800922,1761965208457,-500.0,0.0003597,15]
[392800923,1761965208479,-500.0,0.0003597,15]
[392800924,1761965208500,-500.0,0.0003597,15]
[392800925,1761965208520,-500.0,0.0003597,15]
[392800926,1761965208541,-500.0,0.0003597,2]
[392800927,1761965208561,-500.0,0.0003597,15]
[392800928,1761965208581,-500.0,0.0003597,15]
[392800929,1761965208602,-500.0,0.0003597,15]
[392800930,1761965208622,-500.0,0.0003597,15]
[392800931,1761965208642,-650.82986522,0.0003597,2]
[392800932,1761965208665,-500.0,0.0003597,15]
[392800933,1761965208685,-500.0,0.0003597,15]
[392800934,1761965208704,-500.0,0.0003597,15]
[392800935,1761965208724,-445.04913269,0.0003597,2]
[392800942,1761965241102,-1126.2185238,0.00035871,2]
[392800943,1761965241123,-54.95086731,0.0003597,2]
[392800944,1761965241144,-500.0,0.0003597,15]
[392800945,1761965241165,-239.7735929,0.0003597,15]
[392800946,1761965241186,-500.0,0.0003597,15]
[392800947,1761965241205,-500.0,0.0003597,15]
[392800948,1761965241224,-500.0,0.0003597,2]
[392800949,1761965241243,-500.0,0.0003597,15]
[392800950,1761965241262,-500.0,0.0003597,15]
[392800951,1761965241281,-500.0,0.0003597,15]
[392800952,1761965241302,-500.0,0.0003597,15]
[392800953,1761965241322,-500.0,0.0003597,15]
[392800954,1761965241341,-500.0,0.0003597,15]
[392800955,1761965241360,-500.0,0.0003597,2]
[392800956,1761965241379,-352.64302915,0.0003597,15]
[392800957,1761965241399,-500.0,0.0003597,15]
[392800958,1761965241418,-500.0,0.0003597,2]
[392800959,1761965241437,-500.0,0.0003597,15]
[392800960,1761965241456,-500.0,0.0003597,15]
[392800961,1761965241477,-500.0,0.0003597,15]
[392800962,1761965241498,-500.0,0.0003597,15]
[392800963,1761965241518,-500.0,0.0003597,15]
[392800964,1761965241538,-187.32776119,0.0003597,15]
[392800965,1761965241557,-500.0,0.0003597,15]
[392800966,1761965241579,-500.0,0.0003597,15]
[392800967,1761965241598,-500.0,0.0003597,15]
[392800968,1761965241618,-500.0,0.0003597,15]
[392800969,1761965241638,-457.14078414,0.0003597,15]
[392800970,1761965241658,-500.0,0.0003597,15]
[392800971,1761965241766,-500.0,0.0003597,15]
[392800972,1761965241788,-500.0,0.0003597,15]
[392800973,1761965241808,-500.0,0.0003597,15]
[392800974,1761965241829,-500.0,0.0003597,15]
[392800975,1761965241848,-500.0,0.0003597,15]
[392800976,1761965241869,-500.0,0.0003597,15]
[392800977,1761965241889,-300.0,0.0003597,3]
[392800978,1761965241908,-134462.28921151,0.0003597,30]
[392800979,1761965243092,-283422.70661949,0.0003597,30]
[392800980,1761965243112,-50000.0,0.00035971,2]
[392800981,1761965243133,-1424.0,0.00035971,3]
[392800982,1761965243152,-303.0,0.00035971,3]
[392800983,1761965243172,-300.0,0.00035971,3]
[392800984,1761965243191,-300.0,0.00035971,3]
[392800985,1761965243214,-168.0,0.00035972,2]
[392800986,1761965243236,-168.0,0.00035972,2]
[392800987,1761965243257,-168.0,0.00035973,7]
[392800988,1761965243276,-658.0,0.00035988,3]
[392800989,1761965243295,-151.0,0.00035988,3]
[392800990,1761965243314,-429.0,0.00035988,3]
[392800991,1761965243333,-170.75767922,0.00035988,43]
[392800992,1761965243352,-223.08,0.00035989,14]
[392800993,1761965243371,-151.0,0.00035989,2]
[392800994,1761965243389,-151.0,0.00035989,2]
[392800995,1761965243407,-151.15772213,0.00035989,2]
[392800996,1761965243426,-151.0,0.00035989,2]
[392800997,1761965243446,-151.0,0.00035989,2]
[392800998,1761965243465,-151.0,0.00035989,2]
[392800999,1761965243484,-184.39184753,0.0003599,2]
[392801000,1761965243501,-4106.04844208,0.0003599,2]
[392801001,1761965243521,-317.67923662,0.0003599,2]
[392801002,1761965243539,-469884.57976393,0.00036,7]
[392801004,1761965273579,328.6489082,0.00030995,2]
[392801005,1761965273600,171.4210918,0.00030995,2]
[392801044,1761965432446,-851.0710443,0.00035071,2]
[392801045,1761965432455,-209.51017245,0.00035971,7]
[392801047,1761965432464,-699.73996766,0.00035985,2]
[392801163,1761965438316,-2162.02425084,0.00035985,2]
[392801165,1761965438326,-201.73371903,0.0003599,2]
[392801167,1761965438336,-10136.61465681,0.00036,7]
[392801192,1761965438573,-90364.933479,0.00036,7]
[392801194,1761965438583,-7106.6781338,0.00036,7]
[392801196,1761965438594,-644.52289732,0.00036,7]
[392801198,1761965438606,-671.27813241,0.00036,7]
[392801200,1761965438618,-1397.97056275,0.00036,7]
[392801255,1761965440607,-3e-08,0.00036,7]
[392801269,1761965443869,-2606.14333278,0.00036,7]
[392801271,1761965444095,-1551.017301,0.00036,7]
[392801272,1761965444107,-10999.5335859,0.00036,7]
[392801274,1761965446492,-1075.6164,0.00036,7]
[392801275,1761965446888,-16853.37153,0.00036,7]
[392801276,1761965446901,-1075.6164,0.00036,7]
[392801278,1761965450043,5000.0,0.00030995,2]
[392801281,1761965465220,5000.0,0.00026,2]
[392801311,1761965636871,-2174.18877015,0.00032165,2]
[392801312,1761965636897,-2174.18877015,0.00032441,2]
[392801313,1761965637043,-2174.18877015,0.00032674,2]
[392801314,1761965637069,-2174.18877015,0.00032955,2]
[392801315,1761965639738,-2174.18877015,0.00033201,2]
[392801316,1761965639764,-2174.18877015,0.00033447,2]
[392801317,1761965639963,-2174.18877015,0.0003393,2]
[392801318,1761965639990,-150.19241634,0.00033937,2]
[392801319,1761965640018,-2174.18877015,0.00034239,2]
[392801320,1761965642747,-2174.18877015,0.0003442,2]
[392801321,1761965642773,-2174.18877015,0.00034746,2]
[392801322,1761965645755,-400.0,0.00034419,2]
[392801323,1761965645781,-2174.18877015,0.00034996,2]
[392801324,1761965647752,-455.75738156,0.00035304,2]
[392801325,1761965651591,-380.56226159,0.00035304,2]
[392801359,1761965855068,150.0,0.0002589,2]
[392801360,1761965855454,177.0,0.0002789,2]
[392801361,1761965856748,258.0,0.0003389,120]
[392801362,1761965857777,-204.0,0.0002989,2]
[392801365,1761965872708,-231.0,0.0003189,2]
[392801373,1761966006905,1000.0,0.00037996,30]
[392801374,1761966007053,151.0,0.00037996,30]
[392801376,1761966007525,1000.0,0.00037996,30]
[392801377,1761966007556,156.587,0.00037996,30]
[392801378,1761966008156,1000.0,0.00037996,30]
[392801379,1761966008186,156.587,0.00037996,30]
[392801391,1761966169645,221.08340515,0.0002589,2]
[392801397,1761966241303,168.0,0.00035301,120]
[392801402,1761966306593,359.66711901,0.00037996,30]
[392801490,1761966632760,-200.0,0.00034465,2]
[392801491,1761966632769,-994.64705,0.00034465,2]
[392801493,1761966632778,-168.0,0.00034965,7]
[392801495,1761966632787,-168.0,0.00035033,2]
[392801497,1761966632797,-1895.41555579,0.00035134,2]
[392801499,1761966632805,-168.0,0.00035175,2]
[392801501,1761966632814,-1600.0,0.00035317,3]
[392801503,1761966632823,-1895.41555579,0.0003535,2]
[392801505,1761966632832,-400.0,0.0003545,3]
[392801507,1761966632841,-175.7611248,0.00035451,3]
[392801509,1761966632852,-224.2388752,0.00035451,3]
[392801511,1761966632861,-376.4451248,0.00035452,3]
[392801512,1761966632872,-23.5548752,0.00035452,3]
[392801514,1761966632882,-400.0,0.00035452,3]
[392801516,1761966632891,-425.11796654,0.00035453,3]
[392801518,1761966632902,-774.88203346,0.00035453,3]
[392801520,1761966632911,-146.67805552,0.00035685,2]
[392801666,1761966638628,-1748.73750027,0.00035685,2]
[392801667,1761966638638,-174.73,0.00035783,2]
[392801668,1761966638648,-182.729709,0.00035809,2]
[392801669,1761966638658,-1229.24881761,0.00035848,2]
[392801670,1761966638668,-575.25742461,0.00035875,15]
[392801671,1761966638677,-498.12703601,0.00035875,15]
[392801672,1761966638688,-1.87296399,0.00035875,15]
[392801673,1761966638698,-500.0,0.00035875,15]
[392801674,1761966638708,-225.64391301,0.00035875,15]
[392801675,1761966638717,-243.26262172,0.00035875,15]
[392801676,1761966638739,-256.73737828,0.00035875,15]
[392801677,1761966638748,-67.36869139,0.00035875,2]
[392801695,1761966643703,-432.63130861,0.00035875,2]
[392801696,1761966643712,-582.44938972,0.00035875,15]
[392801697,1761966643721,-500.0,0.00035875,15]
[392801698,1761966643731,-500.0,0.00035875,15]
[392801699,1761966643740,-500.0,0.00035875,15]
[392801700,1761966643750,-500.0,0.00035875,2]
[392801702,1761966643759,-500.0,0.00035875,15]
[392801703,1761966643768,-500.0,0.00035875,15]
[392801705,1761966643778,-500.0,0.00035875,15]
[392801707,1761966643787,-419.11587716,0.00035875,2]
[392801709,1761966643796,-500.0,0.00035875,15]
[392801710,1761966643805,-167.31087233,0.00035875,15]
[392801711,1761966643815,-352.65508774,0.00035875,15]
[392801712,1761966643825,-9648.53628805,0.00035876,2]
[392801713,1761966643835,-2767.32797184,0.00035876,2]
[392801719,1761966646820,-21999.36784236,0.00035876,2]
[392801720,1761966646830,-500.0,0.00035879,2]
[392801721,1761966646839,-9648.53628805,0.0003588,2]
[392801722,1761966646849,-9648.53628805,0.00035883,2]
[392801723,1761966646858,-9648.53628805,0.00035887,2]
[392801724,1761966646867,-9648.53628805,0.0003589,2]
[392801725,1761966646877,-3091.4022118,0.00035903,2]
[392801727,1761966646886,-478.85748017,0.00035911,2]
[392801728,1761966646895,-442.86,0.00035927,10]
[392801729,1761966646903,-369.05,0.00035927,10]
[392801730,1761966646913,-307.54,0.00035928,10]
[392801731,1761966646921,-500.0,0.00035937,15]
[392801732,1761966646931,-283.55420165,0.00035937,15]
[392801733,1761966646939,-104643.25599,0.00035938,3]
[392801734,1761966646949,-2073.56312861,0.00035938,3]
[392801735,1761966646957,-999.0,0.00035967,120]
[392801736,1761966646966,-1000.0,0.00035968,2]
[392801737,1761966646975,-151.0,0.00035968,2]
[392801738,1761966646984,-1000.0,0.00035968,2]
[392801739,1761966646992,-151.0,0.00035968,2]
[392801740,1761966647002,-1000.0,0.00035968,2]
[392801741,1761966647011,-151.0,0.00035968,2]
[392801742,1761966647020,-151.0,0.00035968,2]
[392801743,1761966647029,-1000.0,0.00035968,2]
[392801744,1761966647038,-1000.0,0.00035968,2]
[392801745,1761966647046,-151.0,0.00035968,2]
[392801746,1761966647055,-1000.0,0.00035968,2]
[392801747,1761966647064,-151.0,0.00035968,2]
[392801748,1761966647073,-936.30794171,0.00035968,2]
[392801749,1761966647082,-151.0,0.00035968,2]
[392801750,1761966647091,-151.0,0.00035968,2]
[392801751,1761966647101,-151.0,0.00035968,2]
[392801752,1761966647110,-151.0,0.00035968,2]
[392801753,1761966647119,-151.0,0.00035968,2]
[392801754,1761966647128,-151.0,0.00035968,2]
[392801755,1761966647137,-151.0,0.00035968,2]
[392801756,1761966647147,-151.0,0.00035968,2]
[392801757,1761966647155,-151.0,0.00035968,2]
[392801758,1761966647164,-151.0,0.00035968,2]
[392801759,1761966647173,-151.0,0.00035968,2]
[392801760,1761966647182,-151.0,0.00035968,2]
[392801761,1761966647191,-151.0,0.00035968,2]
[392801762,1761966647199,-151.0,0.00035968,2]
[392801763,1761966647208,-260.43998321,0.00035968,2]
[392801764,1761966647217,-598.3898703,0.00035973,5]
[392801765,1761966647226,-533.38741866,0.00035973,5]
[392801766,1761966647235,-638.08893098,0.00035973,2]
[392801767,1761966647244,-183.27946812,0.00035973,5]
[392801768,1761966647253,-151.0,0.00035976,31]
[392801769,1761966647262,-151.0,0.00035976,31]
[392801770,1761966647271,-104643.25599,0.00035976,3]
[392801771,1761966647280,-2073.56312861,0.00035976,3]
[392801772,1761966647289,-245.621503,0.0003598,31]
[392801773,1761966647298,-151.0,0.0003598,31]
[392801774,1761966647308,-197.848036,0.0003598,31]
[392801775,1761966647317,-151.0,0.0003598,31]
[392801776,1761966647327,-240.505395,0.0003598,31]
[392801777,1761966647337,-240.505395,0.0003598,31]
[392801778,1761966647347,-240.505395,0.0003598,31]
[392801779,1761966647356,-151.0,0.0003598,31]
[392801780,1761966647366,-240.505395,0.0003598,31]
[392801781,1761966647375,-151.0,0.0003598,31]
[392801782,1761966647384,-151.0,0.0003598,31]
[392801783,1761966647393,-209286.511979,0.0003598,3]
[392801784,1761966647402,-4147.12625722,0.0003598,3]
[392801785,1761966647412,-27237.5642993,0.00035986,2]
[392801786,1761966647425,-363.0619847,0.00035989,2]
[392801787,1761966647435,-566.71706675,0.00035989,2]
[392801788,1761966647443,-214.2812868,0.00035989,2]
[392801789,1761966647452,-1008.0,0.00035989,2]
[392801790,1761966647461,-151.0,0.00035989,2]
[392801791,1761966647470,-656.0,0.00035989,2]
[392801792,1761966647479,-151.21994308,0.00035989,2]
[392801793,1761966647488,-151.0,0.00035989,2]
[392801794,1761966647497,-151.0,0.00035989,2]
[392801795,1761966647506,-151.0,0.00035989,2]
[392801796,1761966647515,-18370.62817734,0.0003599,2]
[392801797,1761966647527,-5079.01677764,0.0003599,2]
[392801798,1761966647538,-18287.35919815,0.0003599,2]
[392801816,1761966785838,150.0,0.0002589,2]
[392801817,1761966786553,-186.61554801,0.0002789,2]
[392801820,1761966815313,300.0,0.000329,2]
[392801821,1761966826084,300.0,0.000279,2]
[392801822,1761966837862,300.0,0.000279,2]
[392801823,1761966849436,300.0,0.000279,2]
[392801824,1761966860304,300.0,0.000279,2]
[392801825,1761966867605,300.0,0.000279,2]
[392801826,1761966870712,300.0,0.000329,2]
[392801829,1761966888949,-1104.86964691,0.0003589,2]
[392801830,1761966888977,-999.0,0.00035927,120]
[392801831,1761966889005,-261.40612086,0.00035989,15]
[392801832,1761966889031,-240.81231915,0.00035989,15]
[392801833,1761966889058,-270.34634941,0.00035989,2]
[392801834,1761966901051,-10000.01,0.0003599,2]
[392801841,1761967087094,-966.76094102,0.0003589,2]
[392801842,1761967087123,-400.0,0.00035967,2]
[392801843,1761967087155,-151.0,0.00035968,2]
[392801844,1761967087184,-151.0,0.00035968,2]
[392801845,1761967087212,-151.0,0.00035968,2]
[392801846,1761967087240,-151.0,0.00035968,2]
[392801847,1761967087270,-151.0,0.00035968,2]
[392801848,1761967087299,-151.0,0.00035968,2]
[392801849,1761967087328,-151.0,0.00035968,2]
[392801850,1761967087357,-151.0,0.00035968,2]
[392801851,1761967087385,-151.0,0.00035968,2]
[392801852,1761967087413,-151.0,0.00035968,2]
[392801853,1761967087442,-151.0,0.00035968,2]
[392801854,1761967087471,-151.0,0.00035968,2]
[392801855,1761967087598,-151.0,0.00035968,2]
[392801856,1761967087627,-151.0,0.00035968,2]
[392801857,1761967087655,-151.0,0.00035968,2]
[392801858,1761967087686,-151.0,0.00035968,2]
[392801859,1761967087715,-151.0,0.00035968,2]
[392801860,1761967087746,-151.0,0.00035968,2]
[392801861,1761967087776,-151.0,0.00035968,2]
[392801862,1761967087806,-151.0,0.00035968,2]
[392801863,1761967087833,-504.32276064,0.00035973,5]
[392801864,1761967087986,-520.15825939,0.00035973,5]
[392801865,1761967088012,-297.0,0.00035989,3]
[392801866,1761967088039,-265.0,0.00035989,3]
[392801867,1761967088066,-826.0,0.00035989,3]
[392801868,1761967088092,-200.0,0.00035989,3]
[392801869,1761967088118,-385.70631623,0.00035989,2]
[392801870,1761967088548,-265.0,0.0003599,2]
[392801871,1761967088561,-5012.28084876,0.0003599,2]
[392801872,1761967088578,-10000.01,0.0003599,2]
[392801873,1761967088596,-10000.01,0.0003599,2]
[392801874,1761967088609,-10000.01,0.0003599,2]
[392801875,1761967089994,-10000.01,0.0003599,2]
[392801876,1761967093110,-480.61573229,0.00035989,2]
[392801877,1761967093138,-2985.66499811,0.0003599,2]
[392801878,1761967093167,-155.237158,0.0003599,31]
[392801879,1761967096208,2756.9742232,0.00033878,2]
[392801880,1761967096230,10000.01,0.00033878,2]
[392801881,1761967096250,10000.01,0.00033878,2]
[392801882,1761967096271,4519.638832,0.00033878,2]
[392801930,1761967353337,533.25,0.00030995,2]
[392801944,1761967428751,596.93987039,0.00030995,2]
[392802030,1761967683136,5058.41854383,0.00037994,120]
[392802031,1761967687720,196.010996,0.00013699,2]
[392802032,1761967687932,151.89037683,0.00020187,2]
[392802033,1761967687955,44.12061917,0.00020187,2]
[392802034,1761967688133,196.010996,0.00026676,2]
[392802035,1761967689458,-196.010996,0.00033165,2]
[392802038,1761967788697,-322.8952469,0.00034964,2]
[392802039,1761967788726,-270.0,0.00035474,2]
[392802040,1761967788754,-1699.0,0.00035644,2]
[392802041,1761967788781,-270.0,0.00035865,7]
[392802042,1761967788806,-1213.0,0.00035971,3]
[392802043,1761967788833,-400.0,0.00035972,3]
[392802044,1761967788860,-225.0,0.00035972,3]
[392802045,1761967788888,-287.0,0.00035972,3]
[392802046,1761967789117,-4160.1954438,0.00035973,2]
[392802047,1761967789204,-1679.6191124,0.00035973,2]
[392802048,1761967789229,-685.70011775,0.00035989,2]
[392802049,1761967789258,-750.21111961,0.00035989,2]
[392802050,1761967804594,200.0,0.00035989,2]
[392802051,1761967805414,400.0,0.00035988,2]
[392802052,1761967814671,304.0,0.00035988,3]
[392802093,1761967831833,-15846.05247706,0.00035989,2]
[392802099,1761967831889,-3763.2729775,0.00035989,2]
[392802101,1761967831898,-5527.0841322,0.0003599,2]
[392802102,1761967831907,-1070.33502754,0.00035992,2]
[392802104,1761967831916,-8299.40845879,0.00036,7]
[392802106,1761967831928,-1633.37,0.00036,7]
[392802111,1761967831997,-2552.02902669,0.00036,7]
[392802234,1761967837682,-19031.41721113,0.00036,7]
[392802237,1761967837736,-21947.6114783,0.00036,7]
[392802238,1761967837749,-5912.59067191,0.00036,7]
[392802242,1761967840089,-249.6579655,0.00036,7]
[392802243,1761967840102,-553.85,0.00036,7]
[392802303,1761967993837,2864.94930048,0.00035909,3]
[392802304,1761967993858,2135.05069952,0.00035909,3]
[392802306,1761968165905,463.0,0.00035,30]
[392802307,1761968181482,1547.96,0.00020279,120]
[392802308,1761968237681,6107.2138264,0.00035982,2]
[392802309,1761968268138,168.0,0.00035791,2]
[392802310,1761968273197,168.0,0.0003502,2]
[392802311,1761968279124,168.0,0.00035727,2]
[392802320,1761968284200,168.0,0.00035011,2]
[392802321,1761968289230,168.0,0.00035324,2]
[392802322,1761968295130,168.0,0.00035104,2]
[392802323,1761968339238,18067.095,0.00037994,60]
[392802324,1761968393265,1384.868904,0.00035073,2]
[392802326,1761968397323,-505.8180506,0.00035122,2]
[392802327,1761968424008,1442.9172637,0.00035105,2]
[392802329,1761968526656,168.0,0.00034973,2]
[392802330,1761968537358,168.0,0.00035563,7]
[392802331,1761968539686,1203.2417358,0.00035979,2]
[392802332,1761968543180,168.0,0.00035252,7]
[392802333,1761968571747,497.323525,0.00035089,2]
[392802334,1761968623905,258.0,0.0002589,2]
[392802335,1761968680010,354.26005073,0.00035554,14]
[392802349,1761969001168,611.15,0.000356,2]
[392802350,1761969022206,160.0,0.000323,2]
[392802351,1761969022577,260.0,0.00032848,2]
[392802352,1761969022883,360.0,0.00033396,2]
[392802353,1761969023221,460.0,0.00033944,2]
[392802354,1761969023531,560.0,0.00034492,2]
[392802355,1761969023840,493.73499857,0.0003504,2]
[392802381,1761969031940,-13348.11221172,0.00036,7]
[392802393,1761969032045,-2693.93437373,0.00036,7]
[392802621,1761969037906,-16855.35552084,0.00036,7]
[392802622,1761969037917,-13702.54112572,0.00036,7]
[392802625,1761969040208,-2427.15555294,0.00036,7]
[392802643,1761969097536,1593.7860036,0.00035984,2]
[392802644,1761969212907,376.86192099,0.00035989,2]
[392802646,1761969429033,841.0,0.00035464,7]
[392802647,1761969498350,175.0,0.00035616,30]
[392802648,1761969516864,678.35145779,0.00035989,2]
[392802649,1761969519474,1205.95814718,0.00035989,2]
[392802650,1761969552403,1952.4519708,0.00035436,2]
[392802651,1761969571678,699.7399676,0.00035984,2]
[392802652,1761969681868,2245.0,0.0003575,7]
[392802653,1761969716225,320.2408956,0.00035989,2]
[392802658,1761969817624,1884.30960497,0.00035989,2]
[392802659,1761969819397,2710.69242533,0.00035989,2]
[392802660,1761969854568,2839.7670741,0.00025205,2]
[392802661,1761969854590,3367.309373,0.00025205,2]
[392802677,1761970000691,204.0,0.00035989,2]
[392802678,1761970021380,365.98959497,0.00035989,2]
[392802679,1761970024214,571.2868834,0.00035989,2]
[392802680,1761970027865,163.25338706,0.000359,120]
[392802681,1761970044429,1666.7638714,0.00035984,2]
[392802682,1761970072855,168.0,0.00035929,7]
[392802683,1761970088069,800.0,0.00026563,2]
[392802734,1761970232267,-1600.0,0.00035999,3]
[392802736,1761970232277,-304.0,0.00035999,3]
[392802737,1761970232286,-4609.36175411,0.00036,10]
[392802874,1761970240292,-2204.31637253,0.00036,10]
[392802877,1761970240309,-3187.47516323,0.00036,10]
[392802879,1761970240319,-159420.18673395,0.00036,7]
[392802882,1761970240345,-857.87390751,0.00036,7]
[392803165,1761970243323,-543.10497292,0.00036,7]
[392803382,1761970246268,-2155.61625196,0.00036,7]
[392803383,1761970365827,1193.36495251,0.00035507,2]
[392803384,1761970366076,1193.36495251,0.00035804,2]
[392803385,1761970366502,1991.171314,0.00034799,2]
[392803386,1761970366827,1682.81504415,0.00035102,2]
[392803387,1761970366853,308.35626985,0.00035102,2]
[392803388,1761970367118,1991.171314,0.00035344,2]
[392803389,1761970367396,185.1585,0.00033037,2]
[392803390,1761970367462,1991.1713143,0.00035659,2]
[392803391,1761970406257,300.0,0.000357,2]
[392803392,1761970421141,243.99281306,0.00035989,2]
[392803393,1761970462717,150.0,0.0002589,2]
[392803394,1761970463137,177.0,0.0002789,2]
[392803395,1761970463695,177.04171797,0.0002989,2]
[392803397,1761970506360,1765.43095149,0.00037999,60]
[392803398,1761970506389,1000.0,0.00037999,120]
[392803399,1761970506420,151.0,0.00037999,120]
[392803400,1761970506961,1000.0,0.00037999,120]
[392803401,1761970507007,156.587,0.00037999,120]
[392803402,1761970507712,156.587,0.00037999,120]
[392803403,1761970508934,151.0,0.00037999,120]
[392803404,1761970509364,300.0,0.00037999,60]
[392803405,1761970509558,151.0,0.00037999,120]
[392803406,1761970509910,595.84785958,0.00037999,120]